lending/lending_fUSD_20240202
["ID","MTS","AMOUNT","RATE_DAILY","PERIOD"]
[313177462,1706885457690,-151.0,0.00041096,14]
[313177463,1706885457699,-3.84040495,0.00041096,14]
[313177464,1706885457713,-147.15959505,0.00041096,14]
[313177465,1706885457725,-282.566336,0.00041096,14]
[313177466,1706885457734,-91.29356172,0.00042796,2]
[313177467,1706885457746,-2182.33663804,0.00042796,2]
[313177468,1706885457757,-2107.47406197,0.00042796,2]
[313177469,1706885457769,-2290.2,0.00042796,2]
[313177470,1706885464487,420.3224339,0.00022084,2]
[313177471,1706885466041,5887.09377734,0.00020704,5]
[313177472,1706885471840,431.44215885,0.00023,3]
[313177473,1706885471949,414.67720917,0.00023,3]
[313177474,1706885472878,2774.61992536,0.00022084,2]
[313177475,1706885479016,2716.52771166,0.00021,2]
[313177476,1706885492020,537.23148442,0.0001,2]
[313177477,1706885492803,941.13552117,0.00022,2]
[313177478,1706885494176,909.94134482,0.000225,2]
[313177479,1706885496433,8000.0,0.00011,2]
[313177480,1706885513477,33277.65375924,6.94e-05,2]
[313177481,1706885520287,6233.45504183,0.000155,2]
[313177482,1706885524327,624.9913359,0.0002,2]
[313177483,1706885544935,260.87739503,0.00022998,3]
[313177484,1706885545019,282.7359193,0.00022999,3]
[313177485,1706885545904,1886.48683876,0.00015,2]
[313177486,1706885554971,221.20020959,0.0002211,2]
[313177487,1706885572131,155.0,0.00011,2]
[313177488,1706885577988,155.0,0.00011,2]
[313177489,1706885582623,32603.58196463,0.000225,2]
[313177490,1706885586550,1000.0,0.00021954,2]
[313177491,1706885589906,205.0,9.8e-05,2]
[313177492,1706885590468,250.0,0.00021918,2]
[313177493,1706885593368,4929.40273903,0.0001305,2]
[313177494,1706885593740,239.3874883,0.000101,2]
[313177495,1706885600701,1099.06361557,0.0002211,2]
[313177496,1706885613871,281.21826851,0.0002211,2]
[313177497,1706885618646,187.37432317,0.00022998,3]
[313177498,1706885618704,294.93270366,0.00022999,3]
[313177499,1706885618814,3675.5655018,0.0002,2]
[313177500,1706885628710,1632.02832185,0.000181,2]
[313177501,1706885635767,3950.0,0.0002,2]
[313177502,1706885647624,1000.0,0.000135,2]
[313177503,1706885647683,283.32357187,0.000125,2]
[313177504,1706885659550,235.86898303,0.00022,2]
[313177505,1706885663938,206.168287,0.0001,2]
[313177506,1706885666745,627.01,0.0002187,2]
[313177524,1706885798316,327.58,0.00019939,2]
[313177525,1706885798562,327.58,0.00022203,2]
[313177526,1706885828605,950.0,0.00021865,2]
[313177527,1706885857943,250.0,0.00021865,2]
[313177529,1706885939975,828.7,0.00021911,2]
[313177530,1706885977930,157.82,0.00022149,2]
[313177531,1706885978128,157.82,0.00022293,2]
[313177532,1706885978340,157.82,0.00022437,2]
[313177534,1706886010110,185.61,0.00021966,2]
[313177535,1706886046804,200.0,0.00021973,2]
[313177536,1706886055644,250.0,0.00021962,2]
[313177556,1706886098760,622.41,0.00021961,2]
[313177557,1706886099290,257.78,0.00022,2]
[313177558,1706886100591,257.78,0.00022137,2]
[313177559,1706886101875,257.78,0.00022274,2]
[313177560,1706886103166,257.78,0.00022411,2]
[313177580,1706886172090,311.94241579,0.00022,2]
[313177581,1706886223029,153.33,0.00021834,10]
[313177582,1706886223949,150.0,0.00022,2]
[313177584,1706886233431,344.64,0.00019916,2]
[313177585,1706886233647,344.64,0.0002218,2]
[313177590,1706886261750,150.0,0.00022,2]
[313177591,1706886271527,177.95,0.00021828,2]
[313177597,1706886323326,250.0,0.00021814,2]
[313177601,1706886392943,2000.0,0.00021828,2]
[313177608,1706886437475,158.93,0.00022006,2]
[313177612,1706886437715,158.93,0.0002217,2]
[313177613,1706886437929,158.93,0.00022334,2]
[313177615,1706886438333,158.93,0.00022497,2]
[313177617,1706886494320,171.93,0.00021843,2]
[313177619,1706886506759,250.0,0.00021918,2]
[313177620,1706886515592,601.93,0.00021833,2]
[313177621,1706886548551,840.0,0.00021835,2]
[313177633,1706886632033,-374.96758824,0.00022542,2]
[313177634,1706886632043,-155.0,0.00022542,2]
[313177635,1706886632052,-19057.21734432,0.00022543,2]
[313177636,1706886632062,-226.19776129,0.00022544,2]
[313177637,1706886632074,-953.73248157,0.00022544,2]
[313177638,1706886632083,-953.73248157,0.00022544,2]
[313177639,1706886632093,-953.73248157,0.00022544,2]
[313177640,1706886632102,-953.73248157,0.00022544,2]
[313177641,1706886632112,-953.73248157,0.00022544,2]
[313177642,1706886632123,-257.78,0.00022548,2]
[313177643,1706886632133,-266.42415308,0.00022579,2]
[313177644,1706886632142,-266.42415306,0.00022596,2]
[313177645,1706886632153,-266.42415306,0.00022613,2]
[313177646,1706886632162,-546.41,0.00022613,2]
[313177647,1706886632171,-266.42415306,0.0002263,2]
[313177648,1706886632181,-266.42415306,0.00022647,2]
[313177649,1706886632190,-158.93,0.00022661,2]
[313177650,1706886632200,-266.42415306,0.00022663,2]
[313177651,1706886632210,-155.0,0.00022679,2]
[313177652,1706886632219,-1834.27045193,0.00022679,2]
[313177653,1706886632228,-266.42415306,0.0002268,2]
[313177654,1706886632238,-257.78,0.00022685,2]
[313177655,1706886632246,-266.42415306,0.00022697,2]
[313177656,1706886632256,-266.42415306,0.00022714,2]
[313177658,1706886632265,-266.42415306,0.00022731,2]
[313177660,1706886632275,-266.42415306,0.00022748,2]
[313177662,1706886632284,-266.42415306,0.00022765,2]
[313177664,1706886632293,-485.59833642,0.00022768,2]
[313177666,1706886632302,-564.56634161,0.00022781,2]
[313177668,1706886632312,-266.42415306,0.00022782,2]
[313177670,1706886632321,-266.42415306,0.00022799,2]
[313177672,1706886632330,-266.42415306,0.00022816,2]
[313177673,1706886632339,-257.78,0.00022822,2]
[313177674,1706886632349,-158.93,0.00022825,2]
[313177675,1706886632358,-266.42415306,0.00022832,2]
[313177676,1706886632367,-266.42415306,0.00022849,2]
[313177677,1706886632378,-266.42415306,0.00022866,2]
[313177678,1706886632387,-2073.2635017,0.00022873,2]
[313177679,1706886632397,-266.42415306,0.00022883,2]
[313177680,1706886632535,-1000.0,0.00022896,2]
[313177681,1706886632545,-16332.402,0.00022897,2]
[313177682,1706886632555,-55282.3974,0.00022897,2]
[313177683,1706886632564,-526.307,0.00022897,2]
[313177684,1706886632573,-295.37199841,0.00022898,2]
[313177685,1706886632582,-295.37199835,0.00022898,2]
[313177686,1706886632591,-295.37199835,0.00022899,2]
[313177687,1706886632600,-295.37199835,0.00022899,2]
[313177688,1706886632609,-523.8010228,0.00022899,2]
[313177689,1706886632619,-295.37199835,0.00022899,2]
[313177690,1706886632628,-523.8010228,0.00022899,2]
[313177691,1706886632637,-295.37199835,0.00022899,2]
[313177692,1706886632646,-523.8010228,0.000229,2]
[313177693,1706886632655,-295.37199835,0.000229,2]
[313177694,1706886632665,-169.86391151,0.000229,2]
[313177695,1706886632674,-8921.44020294,0.000229,2]
[313177696,1706886632682,-153.85564614,0.000229,2]
[313177697,1706886632692,-266.42415306,0.000229,2]
[313177698,1706886632701,-177.76386887,0.000229,2]
[313177699,1706886632710,-762.3551,0.000229,2]
[313177700,1706886632719,-523.8010228,0.000229,2]
[313177701,1706886632729,-872.23381872,0.000229,2]
[313177702,1706886632738,-295.37199835,0.000229,2]
[313177703,1706886632747,-358.6795273,0.000229,2]
[313177704,1706886632756,-206.0,0.00022932,2]
[313177705,1706886632765,-257.78,0.00022959,2]
[313177706,1706886632774,-158.93,0.00022989,2]
[313177707,1706886632783,-1095.68935283,0.00022993,2]
[313177708,1706886632792,-500.0,0.00022995,2]
[313177709,1706886632801,-172.36279521,0.00022995,2]
[313177710,1706886632810,-372.20096777,0.00022995,2]
[313177711,1706886632819,-1044.60971119,0.00022995,2]
[313177712,1706886632828,-599.27979208,0.00022995,2]
[313177713,1706886632837,-156.55861387,0.00022995,2]
[313177714,1706886632846,-630.55738904,0.00022996,2]
[313177715,1706886632855,-1053.13917845,0.00022997,2]
[313177716,1706886632864,-4921.09307492,0.00022997,2]
[313177717,1706886632874,-775.90960026,0.00022997,2]
[313177718,1706886632883,-189.01095401,0.00022997,2]
[313177719,1706886632893,-453.56534639,0.00022997,2]
[313177720,1706886632902,-73956.15325017,0.00022997,2]
[313177721,1706886632934,-2971.448,0.00022997,2]
[313177722,1706886632956,-84108.04828628,0.00022997,2]
[313177738,1706886638029,-1336.64780728,0.00022997,2]
[313177739,1706886638152,-122485.88278039,0.00022997,2]
[313177740,1706886638162,-470.13909308,0.00022998,2]
[313177741,1706886638173,-164.8499711,0.00022998,2]
[313177742,1706886638183,-301.52307479,0.00022998,2]
[313177743,1706886638192,-34360.31475142,0.00022998,2]
[313177744,1706886638201,-214.26983669,0.00022998,2]
[313177745,1706886638210,-950.85146059,0.00022998,2]
[313177746,1706886638220,-233.23508009,0.00022999,2]
[313177747,1706886638230,-230.59886469,0.00022999,2]
[313177748,1706886638240,-153.73257646,0.00022999,2]
[313177749,1706886638249,-4632.53528402,0.00022999,2]
[313177750,1706886638259,-420454.02724676,0.00022999,2]
[313177751,1706886638269,-500.0,0.00022999,2]
[313177752,1706886638279,-500.0,0.00022999,2]
[313177753,1706886638288,-421.23853395,0.00022999,2]
[313177754,1706886638298,-415.63044032,0.00022999,2]
[313177755,1706886638307,-166.70395157,0.00022999,2]
[313177756,1706886638316,-500.0,0.00022999,2]
[313177757,1706886638326,-178.06506174,0.00022999,2]
[313177758,1706886638335,-186.36464187,0.00022999,2]
[313177759,1706886638344,-500.0,0.00022999,2]
[313177760,1706886638354,-500.0,0.00022999,2]
[313177761,1706886638364,-500.0,0.00022999,2]
[313177762,1706886638373,-211.45467065,0.00022999,2]
[313177763,1706886638384,-398.93976573,0.00022999,2]
[313177764,1706886638393,-16852470.73873574,0.00023,2]
[313177765,1706886638402,-508.56900924,0.00023,2]
[313177766,1706886638411,-1680693.98120701,0.00023,2]
[313177767,1706886638429,-860.04,0.00023,2]
[313177782,1706886641222,-103709.706772,0.00023,2]
[313177783,1706886641252,-949.94662744,0.00023,2]
[313177784,1706886641278,-410.34575,0.00023,2]
[313177785,1706886641303,-308.10005474,0.00023,2]
[313177786,1706886641349,-77108.69227009,0.00023,2]
[313177787,1706886641427,-669.62694369,0.00023,2]
[313177788,1706886641438,-1089.40906279,0.00023,2]
[313177789,1706886641450,-5283.01053275,0.00023,2]
[313177790,1706886641461,-1349.63049974,0.00023,2]
[313177791,1706886641507,-374.84959064,0.00023,2]
[313177810,1706886644797,-1424.0,0.00023,2]
[313177812,1706886644809,-1139.11643078,0.00023,2]
[313177813,1706886644822,-301.83235067,0.00023,2]
[313177835,1706886645176,-10372.40900183,0.00023,2]
[313177837,1706886645188,-7896.0403208,0.00023,2]
[313177840,1706886645199,-6346.84458185,0.00023,2]
[313177848,1706886645347,-10165.42866362,0.00023,2]
[313177849,1706886645358,-5328.90808936,0.00023,2]
[313177875,1706886646248,-374.96758824,0.00022999,2]
[313177876,1706886646257,-6085.31913015,0.00023,2]
[313177877,1706886646268,-4957.81131199,0.00023,2]
[313177878,1706886646280,-4696.31585787,0.00023,2]
[313177879,1706886646306,-599.27979208,0.00023,2]
[313177880,1706886646321,-1769.30619001,0.00023,2]
[313177881,1706886646332,-501.21975964,0.00023,2]
[313177882,1706886646344,-1250.96956068,0.00023,2]
[313177886,1706886648697,335.10316505,0.00022999,10]
[313177888,1706886694161,244.38823347,0.00020605,2]
[313177889,1706886726340,257.78,0.00022,2]
[313177890,1706886727661,257.78,0.00022137,2]
[313177891,1706886728957,257.78,0.00022274,2]
[313177892,1706886730250,257.78,0.00022411,2]
[313177893,1706886731310,355.01,0.00020792,2]
[313177894,1706886765702,250.0,0.00022113,2]
[313177895,1706886855096,160.63,0.00022292,2]
[313177896,1706886905461,2000.0,0.00022139,2]
[313177897,1706886905959,182.98,0.00022139,2]
[313177911,1706886970286,328.0,0.00022044,2]
[313177912,1706886989858,501.6,0.00022073,2]
[313177913,1706887049048,177.34,0.00022073,2]
[313177914,1706887076282,-583.91922047,0.00022529,2]
[313177915,1706887076303,-496.8946229,0.00022529,2]
[313177916,1706887076324,-6458.99227782,0.0002253,2]
[313177917,1706887076344,-4180.19387881,0.0002253,2]
[313177918,1706887113383,250.0,0.00022044,2]
[313177920,1706887190919,377.62,0.00020145,2]
[313177921,1706887191155,377.62,0.00022409,2]
[313177922,1706887201466,250.0,0.00022061,2]
[313177925,1706887310652,1319.09944325,0.00022296,2]
[313177926,1706887321679,331.79693619,0.00021953,2]
[313177927,1706887321706,607.34306381,0.00021953,2]
[313177929,1706887348481,257.78,0.00022,2]
[313177930,1706887349774,150.0,0.00022137,2]
[313177931,1706887349796,107.78,0.00022137,2]
[313177932,1706887351061,107.87914773,0.00022274,2]
[313177933,1706887351083,149.90085227,0.00022274,2]
[313177934,1706887352339,257.78,0.00022411,2]
[313177936,1706887386345,737.6,0.00021953,2]
[313177944,1706887426263,160.63,0.00022086,2]
[313177945,1706887432438,1381.99510708,0.00022489,2]
[313177946,1706887433639,1319.0994432,0.00022467,2]
[313177947,1706887444384,486.76,0.0002196,2]
[313177948,1706887467805,171.92,0.0002196,2]
[313177955,1706887517158,3199.01053178,0.00021883,2]
[313177965,1706887582611,250.0,0.00021918,2]
[313177970,1706887721656,250.0,0.00021887,2]
[313177971,1706887736488,400.0,0.000225,2]
[313177972,1706887739745,376.17,0.0001998,2]
[313177973,1706887739881,769.01361155,0.000225,2]
[313177974,1706887739976,376.17,0.00022244,2]
[313177976,1706887756553,199.85856477,0.000225,2]
[313177977,1706887762852,374.96758824,0.000225,2]
[313177978,1706887767826,892.78100991,0.00022499,2]
[313177982,1706887810990,-533.88869138,0.00022505,2]
[313177983,1706887811010,-881.11130862,0.00022542,2]
[313177984,1706887825967,409.92,0.00021963,2]
[313178002,1706887832175,-1723.51463944,0.00022542,2]
[313178003,1706887832185,-257.78,0.00022548,2]
[313178004,1706887832194,-257.78,0.00022685,2]
[313178005,1706887832204,-346.81463581,0.00022697,2]
[313178007,1706887832230,-779.83126419,0.00022697,2]
[313178008,1706887832240,-300.0,0.00022769,2]
[313178010,1706887832249,-150.0,0.00022769,2]
[313178011,1706887832258,-1074.79468387,0.0002277,2]
[313178012,1706887832270,-14763.84002912,0.0002277,2]
[313178013,1706887832279,-155.0,0.00022793,2]
[313178014,1706887832289,-342.952421,0.00022795,2]
[313178015,1706887832305,-321.5556803,0.00022795,2]
[313178016,1706887832314,-178.34454767,0.00022795,2]
[313178017,1706887832324,-2823.52992529,0.00022795,2]
[313178018,1706887832333,-503.38807793,0.00022795,2]
[313178019,1706887832344,-1499.93511924,0.00022795,2]
[313178020,1706887832354,-245.41926485,0.00022795,2]
[313178021,1706887832363,-202.88847941,0.00022795,2]
[313178022,1706887832372,-155.1807911,0.00022795,2]
[313178023,1706887832382,-367.80860718,0.00022795,2]
[313178024,1706887832391,-318.3963973,0.00022795,2]
[313178026,1706887832400,-465.64419467,0.00022795,2]
[313178028,1706887832543,-208.3247096,0.00022795,2]
[313178031,1706887832553,-374.96758824,0.00022795,2]
[313178032,1706887832563,-375.53060118,0.00022795,2]
[313178035,1706887832573,-4687.86877052,0.00022796,2]
[313178036,1706887832582,-2566.85,0.00022796,2]
[313178038,1706887832593,-499.99,0.00022796,2]
[313178040,1706887832603,-212.3948,0.00022797,2]
[313178042,1706887832613,-4540.3178,0.00022797,2]
[313178044,1706887832623,-106633.7036,0.00022797,2]
[313178046,1706887832633,-242.95099859,0.00022797,2]
[313178048,1706887832644,-150.0,0.00022803,2]
[313178050,1706887832653,-150.0,0.00022818,2]
[313178052,1706887832663,-257.78,0.00022822,2]
[313178054,1706887832672,-8516.2687835,0.00022892,2]
[313178056,1706887832681,-12063.21167929,0.00022894,2]
[313178057,1706887832690,-613.47942238,0.00022894,2]
[313178058,1706887832699,-4533.26541301,0.00022894,2]
[313178059,1706887832708,-788.12264594,0.00022895,2]
[313178060,1706887832718,-203.72743231,0.00022895,2]
[313178061,1706887832727,-1047.52947857,0.00022895,2]
[313178062,1706887832737,-1137.54159849,0.00022895,2]
[313178063,1706887832746,-698.46857632,0.00022895,2]
[313178064,1706887832756,-500.0,0.00022895,2]
[313178065,1706887832765,-49212.08308256,0.00022896,2]
[313178066,1706887832775,-1598.15772777,0.00022896,2]
[313178067,1706887832784,-155.0,0.00022896,2]
[313178068,1706887832794,-164.8499711,0.00022896,2]
[313178069,1706887832803,-205.19779656,0.00022896,2]
[313178070,1706887832812,-398.79823949,0.00022896,2]
[313178071,1706887832822,-1051.96106366,0.00022896,2]
[313178072,1706887832832,-4251.09923915,0.00022896,2]
[313178073,1706887832841,-155.0,0.00022896,2]
[313178074,1706887832850,-4722.73222534,0.00022896,2]
[313178075,1706887832860,-671.94363692,0.00022896,2]
[313178076,1706887832870,-633.32208326,0.00022896,2]
[313178077,1706887832880,-584.01775078,0.00022896,2]
[313178078,1706887832889,-1408.3753,0.00022897,2]
[313178079,1706887832898,-123345.12757362,0.00022897,2]
[313178080,1706887832928,-734.50514718,0.00022897,2]
[313178081,1706887832940,-5415.93898028,0.00022897,2]
[313178082,1706887832952,-21549.7828,0.00022897,2]
[313178083,1706887832968,-30290.47978191,0.00022897,2]
[313178084,1706887832981,-449.57833095,0.00022897,2]
[313178101,1706887838894,-710.91,0.00022542,2]
[313178102,1706887838906,-5142.03007926,0.00022897,2]
[313178103,1706887838920,-1120.6283,0.00022897,2]
[313178104,1706887838935,-603.45575644,0.00022897,2]
[313178105,1706887838949,-804.528,0.00022897,2]
[313178106,1706887838978,-1267.65875993,0.00022897,2]
[313178107,1706887838997,-438.57900923,0.00022897,2]
[313178108,1706887839011,-3878.48086646,0.00022897,2]
[313178109,1706887839058,-42014.64701474,0.00022897,2]
[313178110,1706887839069,-3987.5054,0.00022897,2]
[313178111,1706887839080,-198.50359611,0.000229,2]
[313178112,1706887839092,-155.7977244,0.000229,2]
[313178113,1706887839105,-2836.14208224,0.000229,2]
[313178114,1706887839116,-153.92326911,0.000229,2]
[313178115,1706887839128,-155.92152823,0.000229,2]
[313178116,1706887839140,-23833.72920462,0.000229,2]
[313178117,1706887839151,-257.78,0.00022959,2]
[313178118,1706887839162,-220.30751523,0.0002299,2]
[313178119,1706887839174,-220.30751523,0.0002299,2]
[313178120,1706887839185,-220.30751523,0.0002299,2]
[313178121,1706887839197,-16809.17941921,0.00022998,2]
[313178122,1706887839209,-1042.33486531,0.00022998,2]
[313178123,1706887839221,-247.34763938,0.00022998,2]
[313178124,1706887839233,-157.21519066,0.00022998,2]
[313178127,1706887839245,-472.50244928,0.00022998,2]
[313178129,1706887839257,-525.21369596,0.00022998,2]
[313178130,1706887839270,-760.31642859,0.00022998,2]
[313178131,1706887839282,-1093.03891312,0.00022998,2]
[313178132,1706887839293,-155.0,0.00022998,2]
[313178133,1706887839304,-526.02587888,0.00022998,2]
[313178134,1706887839314,-155.25303248,0.00022998,2]
[313178135,1706887839323,-1045.39277058,0.00022998,2]
[313178136,1706887839334,-155.42586713,0.00022998,2]
[313178137,1706887839343,-371.79729252,0.00022999,2]
[313178138,1706887839354,-7918.35117595,0.00022999,2]
[313178139,1706887839364,-14031.18597,0.00022999,2]
[313178140,1706887839373,-174.02325168,0.00022999,2]
[313178141,1706887839383,-157.19795552,0.00022999,2]
[313178142,1706887839573,-500.0,0.00022999,2]
[313178143,1706887839586,-361.51830742,0.00022999,2]
[313178144,1706887839599,-500.0,0.00022999,2]
[313178145,1706887839609,-500.0,0.00022999,2]
[313178146,1706887839619,-500.0,0.00022999,2]
[313178147,1706887839628,-1558789.35774747,0.00023,2]
[313178148,1706887839644,-126731.63337127,0.00023,2]
[313178149,1706887839654,-30655.06823191,0.00023,2]
[313178150,1706887839669,-481853.13364289,0.00023,2]
[313178151,1706887839682,-1233.86748,0.00023,2]
[313178152,1706887839701,-343.36644218,0.00023,2]
[313178153,1706887839713,-846.249995,0.00023,2]
[313178163,1706887840847,-282.7326272,0.00023,2]
[313178164,1706887840858,-1698.15658461,0.00023,2]
[313178165,1706887840870,-430.318,0.00023,2]
[313178166,1706887840956,-975.27046369,0.00023,2]
[313178167,1706887841717,-439.10667098,0.00023,2]
[313178168,1706887841729,-660.59475388,0.00023,2]
[313178169,1706887841740,-3986.2815106,0.00023,2]
[313178170,1706887841751,-5353.12373552,0.00023,2]
[313178189,1706887843541,-271025.3197459,0.00023,2]
[313178190,1706887843553,-16196.19312917,0.00023,2]
[313178191,1706887843601,-3003.48007883,0.00023,2]
[313178192,1706887843613,-3085.64720323,0.00023,2]
[313178193,1706887843626,-19113.850986,0.00023,2]
[313178448,1706887846321,-5249.78357876,0.00023,2]
[313178450,1706887846333,-1214.16852124,0.00023,2]
[313178469,1706887846546,-2151.1,0.00023,2]
[313178733,1706887861600,300.0,0.000228,8]
[313178734,1706887863717,600.0,0.000229,8]
[313178740,1706887886267,850.43366334,0.00023,3]
[313178741,1706887886370,886.169706,0.00023,3]
[313178742,1706887944099,155.42229511,0.0002061,2]
[313178743,1706887959085,442.10866146,0.00022998,3]
[313178744,1706887959180,529.84065389,0.00023,3]
[313178745,1706887969978,257.78,0.00022,2]
[313178746,1706887971248,257.78,0.00022137,2]
[313178747,1706887972951,257.78,0.00022274,2]
[313178748,1706887974212,257.78,0.00022411,2]
[313178749,1706888017414,180.61,0.00022212,2]
[313178750,1706888032205,245.3804614,0.00022998,3]
[313178751,1706888032319,273.84440084,0.00023,3]
[313178752,1706888032414,416.96497869,0.0002313,3]
[313178753,1706888067103,500.0,0.000235,3]
[313178754,1706888074573,250.0,0.00022152,2]
[313178755,1706888080437,11900.0,0.00022152,2]
[313178756,1706888108153,200.0,0.00022219,2]
[313178757,1706888138221,2000.0,0.00022209,2]
[313178758,1706888174612,250.0,0.00022216,2]
[313178759,1706888197377,379.95,0.00020268,2]
[313178773,1706888281088,672.06,0.00022057,2]
[313178779,1706888377598,687.76,0.00021999,2]
[313178780,1706888387297,577.44,0.00021999,2]
[313178781,1706888396854,155.87,0.00022144,2]
[313178782,1706888414966,2371.75145814,0.00021734,2]
[313178783,1706888442662,982.72,0.00021919,2]
[313178784,1706888442703,1752.39528177,0.00022192,2]
[313178785,1706888465253,663.55120331,0.000225,2]
[313178818,1706888515073,172.05,0.00021979,2]
[313178825,1706888545171,250.0,0.00022006,2]
[313178827,1706888553760,206.0,0.00021565,2]
[313178829,1706888561884,2000.0,0.00022006,2]
[313178832,1706888591658,257.78,0.0002188,2]
[313178833,1706888591905,250.0,0.00021997,2]
[313178834,1706888592949,257.78,0.00022017,2]
[313178836,1706888594284,257.78,0.00022154,2]
[313178837,1706888595596,257.78,0.00022291,2]
[313178838,1706888596888,257.78,0.00022428,2]
[313178845,1706888623359,200.0,0.00022047,2]
[313178846,1706888624730,399.89,0.0002013,2]
[313178847,1706888624954,399.89,0.00022394,2]
[313178855,1706888655640,21087.0,0.00022425,2]
[313178865,1706888740050,462.35,0.00022007,2]
[313178866,1706888764308,205.0,0.00021565,2]
[313178868,1706888801780,-155.0,0.00022501,2]
[313178869,1706888815702,-283.72086324,0.00022502,2]
[313178870,1706888815732,-892.78100991,0.00022502,2]
[313178871,1706888816573,576.64,0.00022029,2]
[313178872,1706888830161,200.0,0.000224,8]
[313178873,1706888832349,500.0,0.000225,8]
[313178874,1706888832736,-155.0,0.00022527,2]
[313178875,1706888834448,700.0,0.000226,8]
[313178876,1706888836550,1000.0,0.000227,8]
[313178877,1706888839267,1200.0,0.000228,8]
[313178878,1706888841408,200.0,0.000229,8]
[313178879,1706888872284,10784.65,0.00022075,2]
[313178881,1706888900417,155.87,0.00022185,2]
[313178882,1706888900659,155.87,0.00022416,2]
[313178883,1706888914647,20102.76,0.0002196,2]
[313178886,1706888976563,290.1661085,0.0002185,2]
[313178887,1706889013027,-155.0,0.00022522,2]
[313178888,1706889013054,-45.0,0.00022522,2]
[313178913,1706889031486,-544.56979508,0.00022521,2]
[313178914,1706889031497,-146.80901753,0.00022522,2]
[313179008,1706889038909,-700.97199238,0.00022522,2]
[313179009,1706889038919,-257.78,0.00022565,2]
[313179010,1706889038929,-109.94800692,0.000226,2]
[313179011,1706889039026,-127.9422128,0.000226,2]
[313179012,1706889039035,-155.87,0.00022648,2]
[313179013,1706889039045,-4032.6921,0.00022696,2]
[313179014,1706889039055,-1000.0,0.000227,2]
[313179015,1706889039063,-499.99,0.000227,2]
[313179016,1706889039073,-257.78,0.00022702,2]
[313179017,1706889039082,-300.0,0.00022785,2]
[313179018,1706889039091,-27066.39628564,0.00022786,2]
[313179019,1706889039101,-1015.27508866,0.00022795,2]
[313179020,1706889039110,-39354.6766,0.00022796,2]
[313179021,1706889039119,-1500.0,0.000228,2]
[313179022,1706889039128,-1500.0,0.000228,2]
[313179023,1706889039138,-1500.0,0.000228,2]
[313179024,1706889039146,-1485.01,0.000228,2]
[313179025,1706889039155,-253.71475236,0.000228,2]
[313179026,1706889039165,-4490.55829681,0.000228,2]
[313179027,1706889039176,-533.75820668,0.000228,2]
[313179028,1706889039185,-193.8297375,0.000228,2]
[313179038,1706889039195,-257.78,0.00022839,2]
[313179040,1706889039349,-155.0,0.00022878,2]
[313179042,1706889039359,-157.17983502,0.00022878,2]
[313179044,1706889039369,-230.25647857,0.00022878,2]
[313179045,1706889039378,-155.0,0.00022878,2]
[313179047,1706889039387,-155.87,0.00022879,2]
[313179049,1706889039396,-262.39092305,0.00022879,2]
[313179051,1706889039406,-3653.57827094,0.00022879,2]
[313179054,1706889039417,-1468494.80895944,0.0002288,2]
[313179056,1706889039432,-1314353.45678661,0.0002288,2]
[313179130,1706889040011,-391998.70565715,0.0002288,2]
[313179142,1706889040073,-1768.45637484,0.0002288,2]
[313179144,1706889040084,-491.35519383,0.0002288,2]
[313179146,1706889040099,-257.7349867,0.0002288,2]
[313179148,1706889040111,-862.344,0.0002288,2]
[313179150,1706889040123,-3021.42078,0.0002288,2]